bitfinex-derivatives/quotes_BTCF0:USTF0_20250614
["timestamp","ask_amount","ask_price","bid_price","bid_amount"]
[1749891350476,0.74432119,105190.0,105180.0,0.63724542]
[1749891350678,0.74432119,105190.0,105180.0,0.65201793]
[1749891350982,0.89096492,105190.0,105180.0,0.65201793]
[1749891351287,0.74432119,105190.0,105180.0,0.65201793]
[1749891352584,0.74432119,105190.0,105180.0,0.65201795]
[1749891353781,0.74432119,105190.0,105180.0,0.65202177]
[1749891354085,0.74432119,105190.0,105180.0,0.65202409]
[1749891354287,0.74432119,105190.0,105180.0,0.63724542]
[1749891354583,0.74432119,105190.0,105180.0,0.65202409]
[1749891354775,0.74432119,105190.0,105180.0,0.65202814]
[1749891355185,0.6255457,105190.0,105180.0,0.65202814]
[1749891355581,0.6255457,105190.0,105180.0,0.63724542]
[1749891355781,0.6255457,105190.0,105180.0,0.65202814]
[1749891356180,0.6255457,105190.0,105180.0,0.63724542]
[1749891356378,0.6255457,105190.0,105180.0,0.65202814]
[1749891356578,0.6255457,105190.0,105180.0,0.65202816]
[1749891357985,0.6255457,105190.0,105180.0,0.63724542]
[1749891358187,0.6255457,105190.0,105180.0,0.65202816]
[1749891358685,0.6255457,105190.0,105180.0,0.63724542]
[1749891358887,0.6255457,105190.0,105180.0,0.65202816]
[1749891359486,0.6255457,105190.0,105180.0,0.65202932]
[1749891359783,0.6255457,105190.0,105180.0,0.63724542]
[1749891359991,0.6255457,105190.0,105180.0,0.65202932]
[1749891360286,0.6255457,105190.0,105180.0,0.63724542]
[1749891360484,0.6255457,105190.0,105180.0,0.65202932]
[1749891360788,0.6255457,105190.0,105180.0,0.63724542]
[1749891360988,0.6255457,105190.0,105180.0,0.65202932]
[1749891361489,0.6255457,105190.0,105180.0,0.63724542]
[1749891361881,0.6255457,105190.0,105180.0,0.65202982]
[1749891362085,0.6255457,105190.0,105180.0,0.6520298]
[1749891362286,0.6255457,105190.0,105180.0,0.65202983]
[1749891362491,0.6255457,105190.0,105180.0,0.65202981]
[1749891363089,0.6255457,105190.0,105180.0,0.65202967]
[1749891363389,0.6255457,105190.0,105180.0,0.65202979]
[1749891363890,0.6255457,105190.0,105180.0,0.65203299]
[1749891364190,0.6255457,105190.0,105180.0,0.49060169]
[1749891364391,0.6255457,105190.0,105180.0,0.65203417]
[1749891364587,0.6255457,105190.0,105180.0,0.65203416]
[1749891364784,0.6255457,105190.0,105180.0,0.65203415]
[1749891365088,0.74432119,105190.0,105180.0,0.63724542]
[1749891365292,0.74432119,105190.0,105180.0,0.65203342]
[1749891365590,0.74432119,105190.0,105180.0,0.63724542]
[1749891365992,0.74432119,105190.0,105180.0,0.65203318]
[1749891366385,0.74432119,105190.0,105180.0,0.63724542]
[1749891366792,0.74432119,105190.0,105180.0,0.65203321]
[1749891366991,0.74432119,105190.0,105180.0,0.63724542]
[1749891367292,0.74432119,105190.0,105180.0,0.65203321]
[1749891367489,0.74432119,105190.0,105180.0,0.65203322]
[1749891368789,0.74432119,105190.0,105180.0,0.65206155]
[1749891368996,0.74432119,105190.0,105180.0,0.63727375]
[1749891369495,0.74432119,105190.0,105180.0,0.65206152]
[1749891369895,0.74432119,105190.0,105180.0,0.65206174]
[1749891370299,0.74432119,105190.0,105180.0,0.63727375]
[1749891370596,0.74432119,105190.0,105180.0,0.6520617]
[1749891371806,0.74432119,105190.0,105180.0,0.63727375]
[1749891372000,0.74432119,105190.0,105180.0,0.6520617]
[1749891372893,0.74432119,105190.0,105180.0,0.65206175]
[1749891373200,0.74432119,105190.0,105180.0,0.63727375]
[1749891373499,0.74432119,105190.0,105180.0,0.65206177]
[1749891374490,0.74432119,105190.0,105180.0,0.63727375]
[1749891374689,0.74432119,105190.0,105180.0,0.652062]
[1749891375599,0.74432119,105190.0,105180.0,0.65206193]
[1749891375799,0.74432119,105190.0,105180.0,0.65206183]
[1749891376299,0.74432119,105190.0,105180.0,0.63727375]
[1749891376598,0.74432119,105190.0,105180.0,0.65206182]
[1749891376794,0.74432119,105190.0,105180.0,0.63727375]
[1749891377099,0.74432119,105190.0,105180.0,0.65206182]
[1749891377297,0.74432119,105190.0,105180.0,0.63727375]
[1749891377498,0.68062119,105190.0,105180.0,0.7987056]
[1749891377799,0.68062119,105190.0,105180.0,0.831405]
[1749891378000,0.68062119,105190.0,105180.0,0.83140493]
[1749891378500,0.67662119,105190.0,105180.0,0.83140503]
[1749891378695,0.66962119,105190.0,105180.0,0.81761748]
[1749891378897,0.66962119,105190.0,105180.0,0.68676132]
[1749891379099,0.66962119,105190.0,105180.0,0.68676152]
[1749891379500,0.66962119,105190.0,105180.0,0.6867001]
[1749891379798,0.66962119,105190.0,105180.0,0.67197375]
[1749891379993,0.66962119,105190.0,105180.0,0.6867001]
[1749891380396,0.66962119,105190.0,105180.0,0.54005637]
[1749891380594,0.81626492,105190.0,105180.0,0.44920995]
[1749891380804,0.91356492,105190.0,105180.0,0.41800995]
[1749891380994,0.91356492,105190.0,105180.0,0.43273679]
[1749891381199,0.91356492,105190.0,105180.0,0.62280059]
[1749891381399,0.91770327,105190.0,105180.0,0.62280059]
[1749891381592,0.91770327,105190.0,105180.0,0.60807375]
[1749891381795,0.91770327,105190.0,105180.0,0.62280059]
[1749891381994,0.92870327,105190.0,105180.0,0.62080059]
[1749891382303,0.80992778,105190.0,105180.0,0.56142463]
[1749891382503,0.95838978,105190.0,105180.0,0.57615147]
[1749891383104,0.81174605,105190.0,105180.0,0.56142463]
[1749891383304,0.95838978,105190.0,105180.0,0.57615147]
[1749891383599,0.95425143,105190.0,105180.0,0.57615147]
[1749891384702,0.95425143,105190.0,105180.0,0.56142463]
[1749891384904,0.95425143,105190.0,105180.0,0.57615117]
[1749891385403,0.95425143,105190.0,105180.0,0.56142463]
[1749891385604,0.95425143,105190.0,105180.0,0.57622111]
[1749891386102,2.45425143,105190.0,105180.0,0.57622111]
[1749891386703,2.45425143,105190.0,105180.0,0.55904401]
[1749891387206,2.3076077,105190.0,105180.0,0.55904401]
[1749891387402,2.45425143,105190.0,105180.0,0.55904401]
[1749891387800,2.45425143,105190.0,105180.0,0.54424753]
[1749891388201,2.45425143,105190.0,105180.0,0.55904401]
[1749891388396,2.45425143,105190.0,105180.0,0.54424753]
[1749891388605,2.45425143,105190.0,105180.0,0.55904401]
[1749891390508,2.45425143,105190.0,105180.0,0.5590359]
[1749891391008,2.45425143,105190.0,105180.0,0.3689721]
[1749891391304,2.45425143,105190.0,105180.0,0.5590359]
[1749891391505,2.45425143,105190.0,105180.0,0.35418373]
[1749891391708,2.45425143,105190.0,105180.0,0.3689721]
[1749891392202,2.45425143,105190.0,105180.0,0.35418373]
[1749891392408,2.42464709,105190.0,105180.0,0.39881897]
[1749891392599,2.42878544,105190.0,105180.0,0.39881897]
[1749891392904,2.42878544,105190.0,105180.0,0.23626361]
[1749891393110,2.42878544,105190.0,105180.0,0.38290734]
[1749891393609,2.42878544,105190.0,105180.0,0.20606734]
[1749891393909,2.42878544,105190.0,105180.0,0.38278734]
[1749891394608,2.42464709,105190.0,105180.0,0.38278734]
[1749891394809,2.42464709,105190.0,105180.0,0.36799897]
[1749891395009,2.42464709,105190.0,105180.0,0.38278734]
[1749891396000,2.27800336,105190.0,105180.0,0.57284882]
[1749891396408,2.42464709,105190.0,105180.0,0.57284882]
[1749891397612,2.42464709,105190.0,105180.0,0.55806277]
[1749891397812,2.42464709,105190.0,105180.0,0.57284882]
[1749891398012,2.42464709,105190.0,105180.0,0.55806277]
[1749891398405,2.42464709,105190.0,105180.0,0.57284882]
[1749891398708,2.42464709,105190.0,105180.0,0.55806277]
[1749891398912,2.42464709,105190.0,105180.0,0.57284882]
[1749891399215,2.42464709,105190.0,105180.0,0.55806277]
[1749891399415,2.42464709,105190.0,105180.0,0.57284882]
[1749891399608,2.42464709,105190.0,105180.0,0.55806277]
[1749891399808,2.42464709,105190.0,105180.0,0.57284882]
[1749891400415,2.42464709,105190.0,105180.0,0.57284912]
[1749891400614,2.42464709,105190.0,105180.0,0.57284927]
[1749891400816,2.42464709,105190.0,105180.0,0.57284929]
[1749891401010,2.42464709,105190.0,105180.0,0.55806277]
[1749891401214,2.42464709,105190.0,105180.0,0.57284929]
[1749891402017,2.42464709,105190.0,105180.0,0.55806277]
[1749891402315,2.42464709,105190.0,105180.0,0.57284929]
[1749891403014,2.42464709,105190.0,105180.0,0.57284813]
[1749891403211,2.42464709,105190.0,105180.0,0.5728461]
[1749891403407,2.42464709,105190.0,105180.0,0.55806277]
[1749891403712,2.42464709,105190.0,105180.0,0.5728461]
[1749891405216,2.42464709,105190.0,105180.0,0.3827823]
[1749891406015,2.42464709,105190.0,105180.0,0.55806277]
[1749891406319,2.42464709,105190.0,105180.0,0.5728461]
[1749891406919,2.42464709,105190.0,105180.0,0.55806277]
[1749891407120,2.27800336,105190.0,105180.0,0.55806277]
[1749891407323,2.42464709,105190.0,105180.0,0.55806277]
[1749891408019,2.42464709,105190.0,105180.0,0.5728457]
[1749891408215,2.42464709,105190.0,105180.0,0.55806277]
[1749891408518,2.42464709,105190.0,105180.0,0.57284609]
[1749891409328,2.42464709,105190.0,105180.0,0.55806277]
[1749891409515,2.42464709,105190.0,105180.0,0.57284609]
[1749891409711,2.42464709,105190.0,105180.0,0.55806277]
[1749891410021,2.42464709,105190.0,105180.0,0.57284551]
[1749891410221,2.27800336,105190.0,105180.0,0.55806277]
[1749891410521,2.42464709,105190.0,105180.0,0.55806277]
[1749891410719,2.42464709,105190.0,105180.0,0.5728524]
[1749891410921,2.42464709,105190.0,105180.0,0.55806277]
[1749891411115,2.42464709,105190.0,105180.0,0.5728524]
[1749891412018,2.42464709,105190.0,105180.0,0.57285208]
[1749891412218,2.42464709,105190.0,105180.0,0.57285216]
[1749891412418,2.42464709,105190.0,105180.0,0.57285208]
[1749891412618,2.42464709,105190.0,105180.0,0.55806277]
[1749891412819,2.42464709,105190.0,105180.0,0.57285223]
[1749891414216,2.42464709,105190.0,105180.0,0.57285231]
[1749891415525,2.42464709,105190.0,105180.0,0.57285503]
[1749891415720,2.42464709,105190.0,105180.0,0.57286018]
[1749891416021,2.42464709,105190.0,105180.0,0.55806277]
[1749891416325,2.42464709,105190.0,105180.0,0.57284396]
[1749891417022,2.42464709,105190.0,105180.0,0.05941643]
[1749891417220,2.42464709,105190.0,105180.0,0.36795897]
[1749891417626,2.42464709,105190.0,105180.0,0.38274016]
[1749891418023,2.42464709,105190.0,105180.0,0.36795897]
[1749891418224,2.42464709,105190.0,105180.0,0.38274016]
[1749891420121,2.42464709,105190.0,105180.0,0.36795897]
[1749891420425,2.42464709,105190.0,105180.0,0.38274016]
[1749891420625,2.42464709,105190.0,105180.0,0.36795897]
[1749891420828,2.42464709,105190.0,105180.0,0.38274016]
[1749891421827,2.42464709,105190.0,105180.0,0.36795897]
[1749891422226,2.42464709,105190.0,105180.0,0.38275986]
[1749891423532,2.42464709,105190.0,105180.0,0.38276012]
[1749891424429,2.42464709,105190.0,105180.0,0.36795897]
[1749891424728,2.42464709,105190.0,105180.0,0.38276012]
[1749891424929,2.42464709,105190.0,105180.0,0.36795897]
[1749891425331,2.42464709,105190.0,105180.0,0.38276012]
[1749891425923,2.42464709,105190.0,105180.0,0.36795897]
[1749891426326,2.42464709,105190.0,105180.0,0.38276012]
[1749891426828,2.42464709,105190.0,105180.0,0.38274252]
[1749891427225,2.42464709,105190.0,105180.0,0.36794137]
[1749891427729,2.42464709,105190.0,105180.0,0.38274252]
[1749891428425,2.42464709,105190.0,105180.0,0.36794137]
[1749891429331,2.42464709,105190.0,105180.0,0.38273556]
[1749891429726,2.42464709,105190.0,105180.0,0.36794137]
[1749891429927,2.42464709,105190.0,105180.0,0.57279927]
[1749891430130,2.42464709,105190.0,105180.0,0.36794137]
[1749891430332,2.42464709,105190.0,105180.0,0.38273556]
[1749891430632,2.42464709,105190.0,105180.0,0.36794137]
[1749891431032,2.42464709,105190.0,105180.0,0.38273209]
[1749891432427,2.45425143,105190.0,105180.0,0.33811445]
[1749891432831,2.45425143,105190.0,105180.0,0.32332373]
[1749891433032,2.45425143,105190.0,105180.0,0.33811445]
[1749891433234,2.45425143,105190.0,105180.0,0.32332373]
[1749891433434,2.45425143,105190.0,105180.0,0.33811444]
[1749891433737,2.45425143,105190.0,105180.0,0.32332373]
[1749891433938,2.45425143,105190.0,105180.0,0.33811444]
[1749891434133,2.45425143,105190.0,105180.0,0.32332373]
[1749891434436,2.45425143,105190.0,105180.0,0.33811444]
[1749891435233,2.45425143,105190.0,105180.0,0.33811328]
[1749891436337,2.45425143,105190.0,105180.0,0.32332373]
[1749891436539,2.45425143,105190.0,105180.0,0.33811328]
[1749891436933,2.45425143,105190.0,105180.0,0.33811329]
[1749891437141,2.45425143,105190.0,105180.0,0.33811328]
[1749891437328,2.45425143,105190.0,105180.0,0.32332373]
[1749891437733,2.45425143,105190.0,105180.0,0.33811328]
[1749891438537,2.45425143,105190.0,105180.0,0.33811329]
[1749891440637,2.45425143,105190.0,105180.0,0.32332373]
[1749891440845,2.45425143,105190.0,105180.0,0.33811329]
[1749891441037,2.45425143,105190.0,105180.0,0.32332373]
[1749891441342,2.45425143,105190.0,105180.0,0.33811329]
[1749891442542,2.42465559,105190.0,105180.0,0.38270282]
[1749891443243,2.42465559,105190.0,105180.0,0.38270281]
[1749891443440,2.27801186,105190.0,105180.0,0.38270281]
[1749891443644,2.42465559,105190.0,105180.0,0.38270281]
[1749891444239,2.42465559,105190.0,105180.0,0.36791325]
[1749891444846,2.42465559,105190.0,105180.0,0.38270281]
[1749891445238,2.42465559,105190.0,105180.0,0.36791325]
[1749891445439,2.42465559,105190.0,105180.0,0.38270281]
[1749891445736,2.42465559,105190.0,105180.0,0.36791325]
[1749891446541,2.42465559,105190.0,105180.0,0.38270281]
[1749891446850,2.42465559,105190.0,105180.0,0.38269651]
[1749891447048,2.42465559,105190.0,105180.0,0.36791325]
[1749891447347,2.42465559,105190.0,105180.0,0.38269651]
[1749891447841,2.42465559,105190.0,105180.0,0.36791325]
[1749891448146,2.42465559,105190.0,105180.0,0.55797705]
[1749891448346,2.42465559,105190.0,105180.0,0.57276031]
[1749891448546,2.42465559,105190.0,105180.0,0.5727603]
[1749891449044,2.42465559,105190.0,105180.0,0.57276031]
[1749891449245,2.42465559,105190.0,105180.0,0.5727603]
[1749891449642,2.42465559,105190.0,105180.0,0.57276031]
[1749891449843,2.42465559,105190.0,105180.0,0.5727603]
[1749891451454,2.42465559,105190.0,105180.0,0.57276031]
[1749891451749,2.42465559,105190.0,105180.0,0.5727603]
[1749891452248,2.42465559,105190.0,105180.0,0.55797705]
[1749891452451,2.42465559,105190.0,105180.0,0.5727603]
[1749891453051,2.42465559,105190.0,105180.0,0.55797705]
[1749891453240,2.42465559,105190.0,105180.0,0.57276028]
[1749891454150,2.42465559,105190.0,105180.0,0.55797705]
[1749891454551,2.42465559,105190.0,105180.0,0.57275913]
[1749891455646,2.42465559,105190.0,105180.0,0.57275917]
[1749891456046,2.42465559,105190.0,105180.0,0.55797705]
[1749891456350,2.42465559,105190.0,105180.0,0.57275918]
[1749891456852,2.42465559,105190.0,105180.0,0.55797705]
[1749891457052,2.42465559,105190.0,105180.0,0.57275918]
[1749891457254,2.42465559,105190.0,105180.0,0.55797705]
[1749891457549,2.42465559,105190.0,105180.0,0.57275918]
[1749891459356,2.42465559,105190.0,105180.0,0.55797705]
[1749891459554,2.42465559,105190.0,105180.0,0.5727615]
[1749891459756,2.42465559,105190.0,105180.0,0.55797705]
[1749891460059,2.42465559,105190.0,105180.0,0.5727615]
[1749891460646,2.42465559,105190.0,105180.0,0.55797705]
[1749891461150,2.42465559,105190.0,105180.0,0.5727615]
[1749891462047,2.42465559,105190.0,105180.0,0.55797705]
[1749891462450,2.42465559,105190.0,105180.0,0.5727615]
[1749891462650,2.42465559,105190.0,105180.0,0.55797705]
[1749891463251,2.42465559,105190.0,105180.0,0.5727615]
[1749891463959,2.42465559,105190.0,105180.0,0.55797705]
[1749891464256,2.42465559,105190.0,105180.0,0.5727615]
[1749891464655,2.42465559,105190.0,105180.0,0.55797705]
[1749891464957,2.42465559,105190.0,105180.0,0.57275918]
[1749891465255,2.42465559,105190.0,105180.0,0.55797705]
[1749891465657,2.27801186,105190.0,105180.0,0.57275918]
[1749891465959,2.42465559,105190.0,105180.0,0.55797705]
[1749891466150,2.42465559,105190.0,105180.0,0.60335918]
[1749891466551,2.42465559,105190.0,105180.0,0.60335913]
[1749891466858,2.42465559,105190.0,105180.0,0.60335912]
[1749891467960,2.27801186,105190.0,105180.0,0.60335912]
[1749891468757,2.27801186,105190.0,105180.0,0.60335888]
[1749891469261,2.27801186,105190.0,105180.0,0.60335896]
[1749891469466,2.27801186,105190.0,105180.0,0.58857705]
[1749891469666,2.27801186,105190.0,105180.0,0.60335907]
[1749891469856,2.27801186,105190.0,105180.0,0.60335797]
[1749891470055,2.27801186,105190.0,105180.0,0.58857705]
[1749891470256,2.27801186,105190.0,105180.0,0.60335798]
[1749891470759,2.27801186,105190.0,105180.0,0.60335776]
[1749891470959,2.27801186,105190.0,105180.0,0.58857705]
[1749891471150,2.27801186,105190.0,105180.0,0.60335775]
[1749891471356,2.27801186,105190.0,105180.0,0.58857705]
[1749891471555,2.27801186,105190.0,105180.0,0.60335775]
[1749891472062,2.27801186,105190.0,105180.0,0.60335731]
[1749891472261,2.27801186,105190.0,105180.0,0.58857705]
[1749891472454,2.45425143,105190.0,105180.0,0.55876779]
[1749891472859,2.45425143,105190.0,105180.0,0.54398753]
[1749891473260,2.45425143,105190.0,105180.0,0.55876779]
[1749891473664,2.45425143,105190.0,105180.0,0.54398753]
[1749891473866,2.45425143,105190.0,105180.0,0.55876779]
[1749891474166,2.45425143,105190.0,105180.0,0.55876653]
[1749891474361,2.45425143,105190.0,105180.0,0.55876649]
[1749891474562,2.45425143,105190.0,105180.0,0.54398753]
[1749891474764,2.45425143,105190.0,105180.0,0.55876859]
[1749891474965,2.45425143,105190.0,105180.0,0.55876854]
[1749891475164,2.45425143,105190.0,105180.0,0.55876844]
[1749891475364,2.45425143,105190.0,105180.0,0.54398753]
[1749891475564,2.45425143,105190.0,105180.0,0.55876844]
[1749891476065,2.45425143,105190.0,105180.0,0.54398753]
[1749891476263,2.45425143,105190.0,105180.0,0.55876843]
[1749891477270,2.45425143,105190.0,105180.0,0.55877013]
[1749891478066,2.45425143,105190.0,105180.0,0.54398753]
[1749891478268,2.45425143,105190.0,105180.0,0.55877013]
[1749891478868,2.45425143,105190.0,105180.0,0.54398753]
[1749891479071,2.45425143,105190.0,105180.0,0.55877013]
[1749891479263,2.45425143,105190.0,105180.0,0.54398753]
[1749891479464,2.45425143,105190.0,105180.0,0.55877013]
[1749891480572,2.45425143,105190.0,105180.0,0.54398753]
[1749891480772,2.45425143,105190.0,105180.0,0.55877013]
[1749891481070,2.45425143,105190.0,105180.0,0.54398753]
[1749891481271,2.45425143,105190.0,105180.0,0.55877013]
[1749891481767,2.45425143,105190.0,105180.0,0.55877015]
[1749891482377,2.42465852,105190.0,105180.0,0.60333381]
[1749891482683,2.42465852,105190.0,105180.0,0.58855066]
[1749891482974,2.42465852,105190.0,105180.0,0.60333431]
[1749891483177,2.42465852,105190.0,105180.0,0.58855066]
[1749891483378,2.42465852,105190.0,105180.0,0.60333422]
[1749891483568,2.42465852,105190.0,105180.0,0.60333419]
[1749891484576,2.42465852,105190.0,105180.0,0.58855066]
[1749891484777,2.42465852,105190.0,105180.0,0.60333419]
[1749891485279,2.42465852,105190.0,105180.0,0.60333428]
[1749891485781,2.42465852,105190.0,105180.0,0.60333431]
[1749891486577,2.42465852,105190.0,105180.0,0.58855066]
[1749891486777,2.42465852,105190.0,105180.0,0.60333407]
[1749891487171,2.42465852,105190.0,105180.0,0.60333392]
[1749891487675,2.42465852,105190.0,105180.0,0.60333388]
[1749891487979,2.42465852,105190.0,105180.0,0.60333386]
[1749891488471,2.42465852,105190.0,105180.0,0.58855066]
[1749891488673,2.42465852,105190.0,105180.0,0.60333386]
[1749891489576,2.42465852,105190.0,105180.0,0.58855066]
[1749891489777,2.42465852,105190.0,105180.0,0.60333385]
[1749891489975,2.42465852,105190.0,105180.0,0.60333386]
[1749891490281,2.42465852,105190.0,105180.0,0.60332691]
[1749891490679,2.27801479,105190.0,105180.0,0.60332691]
[1749891490876,2.42465852,105190.0,105180.0,0.6033269]
[1749891491178,2.42465852,105190.0,105180.0,0.60332526]
[1749891491579,2.42465852,105190.0,105180.0,0.58855066]
[1749891491774,2.42465852,105190.0,105180.0,0.60332526]
[1749891493181,2.42465852,105190.0,105180.0,0.58855066]
[1749891493380,2.42465852,105190.0,105180.0,0.60332527]
[1749891493578,2.42465852,105190.0,105180.0,0.60332547]
[1749891493978,2.27801479,105190.0,105180.0,0.60332547]
[1749891494579,2.27801479,105190.0,105180.0,0.58855066]
[1749891495082,2.27801479,105190.0,105180.0,0.60332547]
[1749891495281,2.27801479,105190.0,105180.0,0.60333011]
[1749891495678,2.27801479,105190.0,105180.0,0.60333009]
[1749891495879,2.27801479,105190.0,105180.0,0.58855066]
[1749891496185,2.27801479,105190.0,105180.0,0.60333043]
[1749891496384,2.27801479,105190.0,105180.0,0.60333036]
[1749891497889,2.27801479,105190.0,105180.0,0.58855066]
[1749891498187,2.27801479,105190.0,105180.0,0.60333017]
[1749891499588,2.27801479,105190.0,105180.0,0.60333016]
[1749891499789,2.27801479,105190.0,105180.0,0.58855066]
[1749891500081,2.27801479,105190.0,105180.0,0.60333017]
[1749891500288,2.27801479,105190.0,105180.0,0.58855066]
[1749891500478,2.27801479,105190.0,105180.0,0.60333132]
[1749891500678,2.27801479,105190.0,105180.0,0.60333133]
[1749891501985,2.27801479,105190.0,105180.0,0.60333297]
[1749891502992,2.27801479,105190.0,105180.0,0.60333296]
[1749891503190,2.27801479,105190.0,105180.0,0.58855066]
[1749891503392,2.27801479,105190.0,105180.0,0.60333296]
[1749891504290,2.27801479,105190.0,105180.0,0.60333326]
[1749891504490,2.27801479,105190.0,105180.0,0.60333442]
[1749891504684,2.27801479,105190.0,105180.0,0.60333439]
[1749891505189,2.27801479,105190.0,105180.0,0.58855066]
[1749891505386,2.27801479,105190.0,105180.0,0.60333439]
[1749891506385,2.42465852,105190.0,105180.0,0.60333439]
[1749891508093,2.42465852,105190.0,105180.0,0.60333857]
[1749891508486,2.42465852,105190.0,105180.0,0.55795066]
[1749891508686,2.42465852,105190.0,105180.0,0.57273857]
[1749891510598,2.42465852,105190.0,105180.0,0.57274448]
[1749891510797,2.42465852,105190.0,105180.0,0.55795066]
[1749891511293,2.42465852,105190.0,105180.0,0.5727445]
[1749891511794,0.92465852,105190.0,105180.0,0.5727445]
[1749891512189,0.92465852,105190.0,105180.0,0.57274453]
[1749891512391,2.42465852,105190.0,105180.0,0.55795066]
[1749891512590,2.42465852,105190.0,105180.0,0.57274454]
[1749891513089,2.42465852,105190.0,105180.0,0.58297312]
[1749891513297,2.42465852,105190.0,105180.0,0.57274454]
[1749891513493,2.42465852,105190.0,105180.0,0.24610559]
[1749891513689,2.42465852,105190.0,105180.0,0.38252074]
[1749891513888,2.42465852,105190.0,105180.0,0.36772686]
[1749891514089,2.42465852,105190.0,105180.0,0.39274935]
[1749891514289,2.42465852,105190.0,105180.0,0.36772686]
[1749891514593,2.42465852,105190.0,105180.0,0.37795545]
[1749891514789,2.42465852,105190.0,105180.0,0.39275166]
[1749891515793,2.42465852,105190.0,105180.0,0.37795545]
[1749891515995,2.42465852,105190.0,105180.0,0.39275166]
[1749891516298,0.92465852,105190.0,105180.0,0.39275166]
[1749891516795,2.42465852,105190.0,105180.0,0.37795545]
[1749891517195,2.42465852,105190.0,105180.0,0.39275166]
[1749891517394,2.42465852,105190.0,105180.0,0.37795545]
[1749891517594,2.42465852,105190.0,105180.0,0.39275166]
[1749891517794,2.42465852,105190.0,105180.0,0.39275198]
[1749891517996,2.42465852,105190.0,105180.0,0.39274771]
[1749891518593,2.42465852,105190.0,105180.0,0.36772686]
[1749891518795,2.42465852,105190.0,105180.0,0.39274771]
[1749891519297,2.42465852,105190.0,105180.0,0.38252055]
[1749891519497,2.42465852,105190.0,105180.0,0.39274771]
[1749891519697,2.42465852,105190.0,105180.0,0.38251707]
[1749891520098,2.42465852,105190.0,105180.0,0.39274423]
[1749891520391,2.42465852,105190.0,105180.0,0.36772686]
[1749891520596,2.42465852,105190.0,105180.0,0.39274423]
[1749891520791,2.42465852,105190.0,105180.0,0.38251707]
[1749891521097,2.42465852,105190.0,105180.0,0.3825165]
[1749891521298,2.42465852,105190.0,105180.0,0.39274327]
[1749891522298,2.30578943,105190.0,105180.0,0.34818014]
[1749891522498,2.45425143,105190.0,105180.0,0.33795337]
[1749891522695,2.45425143,105190.0,105180.0,0.34817982]
[1749891523194,2.45425143,105190.0,105180.0,0.32316373]
[1749891523589,2.45425143,105190.0,105180.0,0.33795337]
[1749891523997,2.45425143,105190.0,105180.0,0.33339018]
[1749891524200,2.45425143,105190.0,105180.0,0.33795337]
[1749891524402,2.45425143,105190.0,105180.0,0.34817982]
[1749891524700,2.45425143,105190.0,105180.0,0.33795337]
[1749891524896,2.45425143,105190.0,105180.0,0.32316373]
[1749891525095,2.45425143,105190.0,105180.0,0.34817982]
[1749891525300,2.45425143,105190.0,105180.0,0.33795337]
[1749891525500,2.45425143,105190.0,105180.0,0.34817982]
[1749891525799,2.45425143,105190.0,105180.0,0.33795337]
[1749891526000,2.45425143,105190.0,105180.0,0.34817982]
[1749891526293,2.45425143,105190.0,105180.0,0.33339018]
[1749891526499,2.45425143,105190.0,105180.0,0.34817751]
[1749891526703,2.45425143,105190.0,105180.0,0.3481772]
[1749891527200,2.45425143,105190.0,105180.0,0.33338987]
[1749891527601,2.45425143,105190.0,105180.0,0.3481772]
[1749891527893,2.45425143,105190.0,105180.0,0.34817635]
[1749891528090,2.45425143,105190.0,105180.0,0.33338987]
[1749891528292,2.45425143,105190.0,105180.0,0.34817635]
[1749891529393,2.45425143,105190.0,105180.0,0.34817576]
[1749891529791,2.45425143,105190.0,105180.0,0.32316373]
[1749891529991,2.45425143,105190.0,105180.0,0.33794943]
[1749891530193,2.45425143,105190.0,105180.0,0.33338955]
[1749891530400,2.45425143,105190.0,105180.0,0.33794948]
[1749891530796,2.45425143,105190.0,105180.0,0.32316373]
[1749891530991,2.45425143,105190.0,105180.0,0.34817527]
[1749891531204,2.45425143,105190.0,105180.0,0.33794921]
[1749891531399,2.45425143,105190.0,105180.0,0.32316373]
[1749891531598,2.45425143,105190.0,105180.0,0.34817468]
[1749891531903,2.45425143,105190.0,105180.0,0.33338946]
[1749891532098,2.45425143,105190.0,105180.0,0.34817525]
[1749891532304,2.57311415,105190.0,105180.0,0.3927115]
[1749891532500,2.42465215,105190.0,105180.0,0.38248577]
[1749891532705,2.42465215,105190.0,105180.0,0.37792571]
[1749891533004,2.42465215,105190.0,105180.0,0.3927115]
[1749891533204,2.42465215,105190.0,105180.0,0.37792571]
[1749891533406,2.42465215,105190.0,105180.0,0.39271556]
[1749891533600,2.42465215,105190.0,105180.0,0.37792737]
[1749891534107,2.42465215,105190.0,105180.0,0.39271556]
[1749891534299,2.42465215,105190.0,105180.0,0.36769998]
[1749891534494,2.42465215,105190.0,105180.0,0.39271556]
[1749891534900,2.42465215,105190.0,105180.0,0.37792737]
[1749891535105,2.42465215,105190.0,105180.0,0.39271556]
[1749891535308,2.42465215,105190.0,105180.0,0.39271208]
[1749891535502,2.42465215,105190.0,105180.0,0.37792737]
[1749891535709,2.42465215,105190.0,105180.0,0.36769998]
[1749891535911,2.42465215,105190.0,105180.0,0.39271208]
[1749891536914,2.42465215,105190.0,105180.0,0.38248469]
[1749891537116,2.42465215,105190.0,105180.0,0.37793015]
[1749891537415,2.42465215,105190.0,105180.0,0.39271486]
[1749891538421,2.42465215,105190.0,105180.0,0.38248975]
[1749891538621,2.42465215,105190.0,105180.0,0.36769998]
[1749891538820,2.42465215,105190.0,105180.0,0.38248975]
[1749891539022,2.42465215,105190.0,105180.0,0.39271991]
[1749891539319,2.42465215,105190.0,105180.0,0.39272108]
[1749891539616,2.42465215,105190.0,105180.0,0.37793015]
[1749891539821,2.42465215,105190.0,105180.0,0.38249091]
[1749891540123,2.42465215,105190.0,105180.0,0.39272107]
[1749891540321,2.42465215,105190.0,105180.0,0.37793014]
[1749891540621,2.42465215,105190.0,105180.0,0.36769998]
[1749891540820,2.42465215,105190.0,105180.0,0.39272108]
[1749891541022,2.42465215,105190.0,105180.0,0.37793015]
[1749891541222,2.42465215,105190.0,105180.0,0.39272108]
[1749891541417,2.42465215,105190.0,105180.0,0.38249091]
[1749891541718,2.42465215,105190.0,105180.0,0.39272108]
[1749891541920,2.42465215,105190.0,105180.0,0.39272123]
[1749891542312,2.42465215,105190.0,105180.0,0.38249091]
[1749891542512,2.42465215,105190.0,105180.0,0.39272123]
[1749891543321,2.42465215,105190.0,105180.0,0.3779303]
[1749891543625,2.42465215,105190.0,105180.0,0.39272123]
[1749891543922,2.42465215,105190.0,105180.0,0.3779303]
[1749891544122,2.42465215,105190.0,105180.0,0.39272123]
[1749891544317,2.42465215,105190.0,105180.0,0.3779303]
[1749891544525,2.42465215,105190.0,105180.0,0.39272239]
[1749891544720,2.42465215,105190.0,105180.0,0.38249207]
[1749891544922,2.42465215,105190.0,105180.0,0.3779303]
[1749891545117,2.42465215,105190.0,105180.0,0.36769998]
[1749891545319,2.42465215,105190.0,105180.0,0.38249207]
[1749891545522,2.42465215,105190.0,105180.0,0.39272239]
[1749891545722,2.42465215,105190.0,105180.0,0.36769998]
[1749891545921,2.42465215,105190.0,105180.0,0.38249207]
[1749891546120,2.42465215,105190.0,105180.0,0.39272239]
[1749891547317,2.42465215,105190.0,105180.0,0.3779303]
[1749891547525,2.42465215,105190.0,105180.0,0.39272239]